bitfinex-derivatives/quotes_ETHF0:USTF0_20250604
["timestamp","ask_amount","ask_price","bid_price","bid_amount"]
[1749052214639,1.2491,2667.5,2666.7,2.4955]
[1749052214640,0.74959,2666.9,2666.7,2.4955]
[1749052214844,3.2078,2667.1,2666.4,9.0208]
[1749052214845,3.95732,2667.1,2666.4,9.0208]
[1749052215047,3.95732,2667.1,2666.7,0.74962]
[1749052215248,3.95732,2667.1,2666.5,1.19992525]
[1749052215448,3.2078,2667.1,2666.8,0.74959]
[1749052215745,3.2078,2667.1,2667.0,0.74954]
[1749052216541,0.74948,2667.3,2667.0,0.74954]
[1749052216739,3.2078,2667.5,2667.0,0.74954]
[1749052216942,5.08136,2667.5,2666.8,2.5555]
[1749052217354,0.74944,2667.4,2667.2,0.74947]
[1749052217545,3.2078,2667.5,2667.1,0.74949]
[1749052217845,3.2078,2667.5,2666.9,1.87391]
[1749052218040,3.95723,2667.5,2667.0,1.2525]
[1749052218237,3.2078,2667.5,2667.4,0.74943]
[1749052223852,4.4171,2668.1,2667.5,1.87352]
[1749052224152,0.00562525,2668.3,2667.6,3.2078]
[1749052224346,1.87860525,2668.3,2667.8,0.74931]
[1749052224546,3.2078,2668.1,2667.8,0.74931]
[1749052224752,3.2078,2668.1,2668.0,0.74926]
[1749052226245,0.00562525,2668.3,2668.0,0.74926]
[1749052226447,0.00562525,2668.3,2668.2,0.74921]
[1749052227448,0.74923,2668.2,2668.1,0.74923]
[1749052227657,3.21342525,2668.3,2668.2,0.74921]
[1749052228750,0.00562525,2668.3,2668.2,0.74921]
[1749052229956,3.2078,2668.6,2668.5,0.74912]
[1749052230348,3.95682,2668.9,2668.7,0.74904]
[1749052230655,0.74907,2668.7,2668.6,0.74908]
[1749052231351,3.21342525,2668.9,2668.3,1.2563]
[1749052231557,0.74917,2668.4,2668.3,0.74917]
[1749052232054,3.95694,2668.5,2668.1,5.786]
[1749052232352,3.2078,2668.8,2668.7,0.74907]
[1749052232952,3.95684,2668.8,2668.7,0.74907]
[1749052233258,0.74907,2668.7,2668.6,2.03928]
[1749052233658,3.95686,2668.8,2668.7,0.74907]
[1749052233956,3.2078,2668.8,2668.7,0.74907]
[1749052235053,0.00562525,2668.9,2668.8,0.74904]
[1749052235658,0.00562525,2668.9,2668.8,1.95554]
[1749052236957,3.2078,2669.4,2669.3,0.7489]
[1749052237546,3.2078,2669.4,2669.2,0.74891]
[1749052237749,3.2078,2669.4,2669.3,0.7489]
[1749052239050,0.75445525,2669.6,2669.5,0.74884]
[1749052239051,0.00562525,2669.6,2669.5,0.74884]
[1749052239246,0.74884,2669.5,2669.4,1.25]
[1749052239453,0.74887,2669.4,2669.3,0.00562525]
[1749052239653,3.95667,2669.4,2669.3,0.00562525]
[1749052242355,0.74901,2668.9,2668.8,2.4302]
[1749052243659,0.74904,2668.8,2668.7,1.2605]
[1749052243860,3.95684,2668.8,2668.7,1.2605]
[1749052246555,3.95684,2668.8,2668.6,0.38112525]
[1749052246556,0.74907,2668.7,2668.6,0.00562525]
[1749052246759,0.74918,2668.3,2668.2,9.1554]
[1749052247764,0.74923,2668.1,2668.0,3.21342525]
[1749052248171,0.74923,2668.1,2668.0,0.00562525]
[1749052249672,3.2078,2668.2,2668.0,0.00562525]
[1749052249862,0.74923,2668.1,2668.0,0.00562525]
[1749052251269,0.74937,2667.6,2667.5,0.3755]
[1749052251466,0.74946,2667.3,2667.2,5.785]
[1749052251669,0.74946,2667.3,2667.2,6.9745]
[1749052252974,0.74946,2667.3,2667.2,7.72397]
[1749052253867,0.74946,2667.3,2667.2,6.9745]
[1749052254969,0.74946,2667.3,2667.2,5.785]
[1749052255771,3.95726,2667.3,2667.2,5.785]
[1749052260364,0.00562525,2667.5,2667.4,0.74943]
[1749052260571,3.9571,2667.9,2667.5,1.8735]
[1749052260769,0.74932,2667.8,2667.6,0.8968]
[1749052260974,0.74932,2667.8,2667.7,1.2362]
[1749052261665,3.95711,2667.9,2667.8,0.74932]
[1749052261866,3.95711,2667.9,2667.7,1.2362]
[1749052262265,0.74932,2667.8,2667.7,1.98553]
[1749052262466,3.9571,2667.9,2667.7,1.2362]
[1749052262767,0.00562525,2668.0,2667.9,0.74929]
[1749052262967,0.00562525,2668.0,2667.9,1.64139]
[1749052263267,0.74935,2667.7,2667.6,0.8968]
[1749052263662,0.74934,2667.8,2667.6,1.64615]
[1749052263970,0.74933,2667.8,2667.7,0.74934]
[1749052264375,0.00562525,2668.0,2667.7,0.74934]
[1749052264566,0.74931,2667.9,2667.7,0.74934]
[1749052264974,0.00562525,2668.0,2667.7,0.74934]
[1749052265172,0.00562525,2668.0,2667.6,2.87106]
[1749052265368,0.74933,2667.8,2667.7,0.74934]
[1749052265677,0.74935,2667.7,2667.6,2.87106]
[1749052266069,0.74933,2667.8,2667.7,0.74934]
[1749052266872,0.00562525,2668.0,2667.9,0.74929]
[1749052267479,0.75488525,2668.0,2667.9,0.74929]
[1749052267771,0.75488525,2668.0,2667.8,0.7493]
[1749052267975,0.74929,2667.9,2667.8,0.7493]
[1749052268778,0.74932,2667.8,2667.7,1.94075]
[1749052269372,0.74932,2667.8,2667.7,1.1914]
[1749052270174,0.74932,2667.8,2667.6,2.02166]
[1749052270175,0.74937,2667.6,2667.5,0.3755]
[1749052270577,3.95717,2667.6,2667.5,0.3755]
[1749052270774,0.74943,2667.4,2667.3,1.2676]
[1749052271873,0.74952,2667.1,2666.8,6.18256784]
[1749052272179,0.74965,2666.7,2666.5,3.0097]
[1749052272482,0.74965,2666.7,2666.6,0.74965]
[1749052272780,0.74962,2666.8,2666.6,0.74965]
[1749052273075,3.95739,2666.9,2666.6,0.74966]
[1749052273279,3.95739,2666.9,2666.7,1.2594]
[1749052273473,0.7496,2666.8,2666.7,1.2594]
[1749052273776,3.95739,2666.9,2666.7,1.2594]
[1749052273978,0.74959,2666.9,2666.7,2.00901]
[1749052274179,0.7496,2666.8,2666.6,0.74964]
[1749052274481,5.0818,2666.9,2666.4,0.00562525]
[1749052274674,0.74968,2666.5,2666.4,0.00562525]
[1749052274872,3.95748,2666.5,2666.4,0.00562525]
[1749052275576,3.95748,2666.5,2665.9,3.1112]
[1749052275577,0.74982,2666.0,2665.9,3.1112]
[1749052275875,3.2078,2666.4,2665.9,3.1112]
[1749052276177,1.8739,2667.0,2665.9,3.1112]
[1749052276178,3.2078,2666.7,2665.9,3.1112]
[1749052276480,0.74979,2666.2,2665.9,3.51779902]
[1749052276673,3.2078,2666.4,2665.9,3.51779902]
[1749052276875,3.95753,2666.4,2666.2,0.74976]
[1749052277074,3.95753,2666.4,2666.3,1.2007]
[1749052277473,0.74973,2666.4,2666.3,1.2007]
[1749052278189,3.95753,2666.4,2666.3,1.2007]
[1749052278386,0.7498,2666.2,2666.0,0.74981]
[1749052278576,0.7498,2666.1,2666.0,1.2007]
[1749052278776,0.74983,2666.0,2665.9,1.8037]
[1749052279482,0.74983,2666.0,2665.6,0.40767127]
[1749052279483,0.74992,2665.7,2665.6,0.40767127]
[1749052279685,0.74994,2665.6,2665.5,0.74995]
[1749052279874,0.74994,2665.7,2665.6,0.74994]
[1749052280077,0.74991,2665.8,2665.6,0.74994]
[1749052280276,3.2078,2665.7,2665.4,0.74998]
[1749052280478,3.2078,2665.7,2665.3,0.75557813]
[1749052280479,0.74997,2665.5,2665.3,0.75557813]
[1749052280678,0.74997,2665.5,2665.3,2.00057813]
[1749052280878,3.2078,2665.7,2665.3,1.63731019]
[1749052281079,5.08233,2666.1,2665.6,0.74993]
[1749052281279,0.74993,2665.7,2665.5,0.74995]
[1749052281476,0.74993,2665.7,2665.6,1.245]
[1749052281680,3.2078,2665.7,2665.3,0.75559813]
[1749052281985,0.75,2665.5,2665.3,0.75559813]
[1749052282287,0.75,2665.5,2665.3,2.00057813]
[1749052282580,3.0951,2666.0,2665.4,5.08281]
[1749052282581,3.95765,2666.0,2665.4,5.08281]
[1749052282786,3.95765,2666.0,2665.7,0.7499]
[1749052282979,0.74986,2665.9,2665.8,1.2436]
[1749052283579,3.2078,2666.0,2665.8,1.2436]
[1749052283886,3.2078,2666.0,2665.9,0.74986]
[1749052284081,3.95756,2666.3,2665.8,1.2436]
[1749052284278,7.64083525,2666.6,2665.8,1.2436]
[1749052284279,0.00562525,2666.6,2666.5,0.74969]
[1749052284681,3.2078,2667.1,2667.0,0.74955]
[1749052284986,3.2078,2667.9,2667.7,0.74934]
[1749052285188,3.2078,2667.9,2667.4,1.8736]
[1749052285384,3.2078,2667.9,2667.7,0.74933]
[1749052285582,3.2078,2668.2,2667.8,0.74932]
[1749052285887,3.2078,2667.9,2667.7,0.74933]
[1749052286379,3.2078,2667.9,2667.6,1.2865]
[1749052286588,0.74933,2667.8,2667.6,1.2865]
[1749052286885,3.2078,2667.9,2667.5,0.94722525]
[1749052287086,0.74936,2667.7,2667.5,0.94722525]
[1749052287288,0.74937,2667.7,2667.5,0.94722525]
[1749052287481,0.74935,2667.8,2667.5,1.69663525]
[1749052287682,3.2078,2667.9,2667.5,0.94722525]
[1749052287889,0.74935,2667.8,2667.5,1.69663525]
[1749052288187,3.95718,2667.6,2667.5,0.94722525]
[1749052288385,3.95718,2667.6,2667.5,0.00562525]
[1749052288683,0.74952,2667.1,2667.0,5.729]
[1749052288988,0.74951,2667.2,2667.0,5.729]
[1749052289186,0.74945,2667.4,2667.1,0.74951]
[1749052289383,3.2078,2667.6,2667.3,0.74945]
[1749052289587,0.74937,2667.7,2667.1,1.2323]
[1749052289789,3.95719,2667.6,2667.1,1.2323]
[1749052290291,3.2078,2667.6,2667.3,0.74946]
[1749052290499,3.2078,2667.6,2667.4,0.74944]
[1749052290698,3.2078,2667.6,2667.5,0.74941]
[1749052290988,0.74936,2667.7,2667.4,0.74942]
[1749052291389,3.2078,2667.9,2667.1,1.2323]
[1749052291583,3.2078,2667.9,2667.7,0.74934]
[1749052291786,3.2078,2667.9,2667.1,3.10607]
[1749052291983,0.74933,2667.8,2667.5,0.7494]
[1749052292181,0.74933,2667.8,2667.5,2.0315]
[1749052292383,3.2078,2667.9,2667.6,0.74938]
[1749052292686,0.74933,2667.8,2667.6,0.74936]
[1749052292889,0.74936,2667.7,2667.5,2.03148]
[1749052293086,3.2078,2667.9,2667.5,1.2821]
[1749052293390,3.95711,2667.9,2667.5,7.0091]
[1749052293586,3.2078,2667.9,2667.8,0.74933]
[1749052294086,0.00562525,2668.1,2668.0,0.74927]
[1749052295498,0.00562525,2668.1,2667.7,1.2821]
[1749052295499,0.74933,2667.8,2667.7,1.2821]
[1749052295689,0.74932,2667.9,2667.7,2.03145]
[1749052295885,3.21342525,2668.1,2667.7,1.2821]
[1749052296191,0.74932,2667.9,2667.7,2.03144]
[1749052296887,0.74932,2667.9,2667.7,1.2821]
[1749052297084,0.74929,2668.0,2667.7,1.2821]
[1749052297288,0.74929,2668.0,2667.9,0.74929]
[1749052297597,0.74929,2668.0,2667.8,0.74932]
[1749052297797,3.21342525,2668.1,2667.7,1.2821]
[1749052298015,0.00562525,2668.1,2668.0,0.74927]
[1749052298891,0.00562525,2668.1,2668.0,1.63517]
[1749052300097,0.75486525,2668.1,2668.0,1.63517]
[1749052300499,0.00562525,2668.1,2668.0,1.63517]
[1749052300894,0.00562525,2668.1,2668.0,2.85287]
[1749052301095,0.00562525,2668.1,2668.0,13.57887]
[1749052301296,0.00562525,2668.1,2668.0,8.57887]
[1749052301491,0.75486525,2668.1,2668.0,7.8296]
[1749052302194,0.75486525,2668.1,2668.0,5.726]
[1749052302395,0.74931,2667.9,2667.8,0.74932]
[1749052302790,0.74933,2667.8,2667.7,5.726]
[1749052302992,0.74933,2667.8,2667.7,6.47535]
[1749052303194,0.00562525,2668.1,2667.8,0.74932]
[1749052303400,0.00562525,2668.1,2667.7,6.47533]
[1749052303703,0.00562525,2668.1,2667.8,0.74933]
[1749052303895,0.7493,2667.9,2667.8,0.74933]
[1749052304102,0.00562525,2668.1,2667.9,0.7493]
[1749052304103,0.74929,2668.0,2667.9,0.7493]
[1749052304696,0.00562525,2668.1,2668.0,0.74927]
[1749052306893,0.00562525,2668.1,2668.0,5.74927]
[1749052307895,1.87241,2669.1,2668.4,0.74916]
[1749052307896,5.08021,2669.1,2668.4,0.74916]
[1749052308100,3.2078,2669.1,2668.6,1.87276]
[1749052308296,3.2078,2669.1,2668.7,1.87267]
[1749052308502,3.2078,2669.1,2669.0,0.74899]
[1749052308902,0.74899,2669.0,2668.9,0.74901]
[1749052309093,0.74902,2668.9,2668.8,0.00562525]
[1749052312592,0.74913,2668.5,2668.4,5.724]
[1749052313197,0.74927,2668.0,2667.9,37.787]
[1749052313395,0.74927,2668.0,2667.9,38.5363]
[1749052313600,0.74926,2668.1,2668.0,0.74927]
[1749052313802,3.2078,2668.3,2667.9,39.0568]
[1749052314004,0.74927,2668.0,2667.9,39.0568]
[1749052314204,0.74927,2668.0,2667.9,39.8061]
[1749052314506,0.74923,2668.2,2667.9,39.0568]
[1749052314705,3.2078,2668.3,2668.1,0.74924]
[1749052315006,0.74925,2668.1,2667.9,39.80608]
[1749052315200,0.74927,2668.0,2667.9,37.787]
[1749052315804,6.36451,2668.3,2667.8,6.47332]
[1749052315805,0.74924,2668.2,2668.0,0.74925]
[1749052316101,4.4915,2668.3,2667.8,6.9376]
[1749052316295,3.2078,2668.3,2668.2,0.74921]
[1749052316800,5.08057,2668.6,2668.2,0.74921]
[1749052317004,0.7492,2668.3,2668.1,0.74922]
[1749052317204,0.74921,2668.2,2668.1,0.74922]
[1749052317803,1.8729,2668.4,2668.0,1.2136]
[1749052318104,0.74924,2668.1,2668.0,1.2136]
[1749052318502,0.74923,2668.2,2668.0,1.96286]
[1749052318707,0.74923,2668.2,2668.1,0.74924]
[1749052319607,0.74923,2668.2,2668.0,1.96285]
[1749052319806,0.74923,2668.2,2668.1,0.74924]
[1749052320009,0.74924,2668.1,2668.0,1.2136]
[1749052320206,5.08082,2668.3,2667.8,5.724]
[1749052320500,0.7493,2667.9,2667.8,0.74933]
[1749052321109,0.74929,2668.0,2667.9,0.7493]
[1749052321309,0.74926,2668.1,2667.9,0.74927]
[1749052321511,3.957,2668.3,2668.1,0.74923]
[1749052322201,3.957,2668.3,2667.8,3.07922]
[1749052322202,3.2078,2668.3,2668.2,0.74921]
[1749052323310,3.2078,2668.8,2668.2,11.71661]
[1749052323507,0.74918,2668.4,2668.2,8.5088]
[1749052323707,5.08044,2668.8,2668.3,0.74918]
[1749052323904,1.87269,2668.7,2668.2,7.7596]
[1749052324104,0.74919,2668.3,2668.2,7.7596]
[1749052324506,0.74918,2668.4,2668.2,8.5088]
[1749052324814,0.74919,2668.3,2668.2,6.5517]
[1749052325111,0.74916,2668.4,2668.2,7.30091]
[1749052325311,0.74919,2668.3,2668.2,7.30091]
[1749052325809,0.74919,2668.3,2668.2,5.691]
[1749052326203,0.74919,2668.3,2667.7,1.672]
[1749052326204,1.87298,2668.3,2667.8,0.74932]
[1749052326407,0.7493,2667.9,2667.8,5.691]
[1749052327308,3.2078,2668.1,2668.0,0.74927]
[1749052328110,3.2078,2668.4,2667.8,5.691]
[1749052328313,0.74928,2668.0,2667.8,7.75091]
[1749052328521,4.4582,2668.4,2668.0,0.74927]
[1749052328711,3.2078,2668.4,2667.8,7.0016]
[1749052328903,0.74922,2668.2,2668.1,0.74924]
[1749052329109,0.74922,2668.2,2668.0,0.74924]
[1749052329308,0.74922,2668.2,2667.8,7.0016]
[1749052329516,0.74922,2668.2,2668.0,0.74925]
[1749052329716,3.2078,2668.4,2667.9,0.74928]
[1749052330015,0.74919,2668.3,2668.1,0.74923]
[1749052330317,3.2078,2668.4,2668.0,0.74925]
[1749052330510,0.74923,2668.2,2668.0,0.74925]
[1749052330913,3.2078,2668.4,2668.2,0.74921]
[1749052330914,3.95698,2668.4,2668.2,0.74921]
[1749052331121,0.74916,2668.4,2668.2,0.74919]
[1749052331615,4.112,2668.7,2668.0,2.0823]
[1749052331616,5.98471,2668.7,2668.0,2.0823]
[1749052331810,3.2078,2668.4,2668.3,0.74919]
[1749052332217,0.74914,2668.5,2668.3,0.74919]
[1749052332614,3.2078,2668.7,2668.1,1.87311]
[1749052332813,0.74912,2668.6,2668.4,0.74915]
[1749052333320,0.74913,2668.5,2668.3,6.44017]
[1749052333915,5.08051,2668.7,2668.3,6.44019]
[1749052334417,0.74916,2668.4,2668.3,6.44019]
[1749052334811,0.74915,2668.5,2668.4,0.74916]
[1749052335019,5.08051,2668.7,2668.3,6.44017]
[1749052335218,0.74915,2668.5,2668.3,6.44017]
[1749052335612,0.74916,2668.4,2668.3,6.44017]
[1749052335812,5.08051,2668.7,2668.3,6.44017]
[1749052335813,5.08051,2668.7,2668.3,5.691]
[1749052336113,0.74914,2668.5,2668.4,0.74914]
[1749052336313,0.74913,2668.6,2668.3,5.691]
[1749052336615,3.95689,2668.7,2668.6,0.7491]
[1749052336808,3.2078,2668.7,2668.6,0.7491]
[1749052337013,3.2078,2669.0,2668.7,0.74907]
[1749052337215,3.2078,2669.0,2668.6,0.74909]
[1749052337216,0.74907,2668.8,2668.6,0.74909]
[1749052337416,0.7491,2668.6,2668.4,2.1938]
[1749052337615,3.95689,2668.7,2668.6,0.7491]
[1749052337817,0.74913,2668.5,2668.4,2.1938]
[1749052338023,0.74911,2668.6,2668.5,0.74912]
[1749052338617,0.74911,2668.6,2668.4,2.1938]
[1749052338820,0.74911,2668.6,2668.5,0.74913]
[1749052339227,0.74913,2668.5,2668.4,2.1938]
[1749052341121,0.74913,2668.5,2668.4,0.8796]
[1749052342022,0.74913,2668.5,2668.4,1.62876]
[1749052342822,0.74911,2668.6,2668.5,0.74912]
[1749052343332,3.2078,2668.7,2668.4,0.8796]
[1749052343333,3.2078,2668.7,2668.4,1.62874]
[1749052343623,0.74912,2668.6,2668.4,0.8796]
[1749052343817,0.74912,2668.6,2668.5,0.74913]
[1749052344219,3.95689,2668.7,2668.6,0.7491]
[1749052344422,3.2078,2668.7,2668.6,0.7491]
[1749052344617,3.95687,2668.7,2668.6,0.7491]
[1749052344818,3.95687,2668.7,2668.5,0.74911]
[1749052345416,3.9569,2668.7,2668.5,0.74911]
[1749052345623,3.2078,2668.7,2668.5,0.7491]
[1749052345923,3.95689,2668.7,2668.6,0.7491]
[1749052346122,0.7491,2668.6,2668.5,0.74911]
[1749052346324,3.95689,2668.7,2668.6,0.7491]
[1749052346625,0.7491,2668.6,2668.5,0.74911]
[1749052346827,3.95689,2668.7,2668.6,0.7491]
[1749052347120,0.7491,2668.6,2668.5,0.74911]
[1749052347322,3.2078,2668.7,2668.4,2.1571]
[1749052347518,3.9569,2668.7,2668.4,2.1571]
[1749052347725,3.9569,2668.7,2668.6,0.7491]
[1749052349226,0.74911,2668.6,2668.5,0.7491]
[1749052349524,0.7491,2668.6,2668.5,0.7491]
[1749052349924,3.95689,2668.7,2668.6,0.7491]
[1749052350226,0.74902,2668.9,2668.8,0.74902]
[1749052350428,3.95682,2668.9,2668.8,0.74902]
[1749052351016,3.2078,2668.9,2668.8,0.74902]
[1749052351227,3.95682,2668.9,2668.8,0.74902]
[1749052351428,3.2078,2669.2,2668.6,4.02395]
[1749052351619,3.95675,2669.2,2668.7,4.4413]
[1749052351827,0.749,2669.0,2668.9,0.74902]
[1749052352123,0.749,2669.0,2668.7,3.2078]
[1749052352124,1.87248,2669.0,2667.9,0.3755]
[1749052352328,0.74924,2668.1,2668.0,1.7946]
[1749052352521,0.74924,2668.1,2668.0,3.091]
[1749052353023,3.2078,2668.4,2668.1,0.74922]
[1749052353229,3.2078,2668.4,2668.3,0.74919]
[1749052353629,3.2078,2668.4,2668.0,4.96416]
[1749052353929,3.2078,2668.4,2668.0,3.091]
[1749052354126,3.95696,2668.4,2668.2,0.74919]
[1749052354328,3.2078,2668.4,2668.3,0.74919]
[1749052354519,3.95696,2668.4,2668.2,0.7492]
[1749052354720,3.2078,2668.4,2668.0,3.091]
[1749052354924,0.7492,2668.3,2668.1,0.74922]
[1749052355326,0.7492,2668.3,2668.0,3.091]
[1749052355525,3.95698,2668.4,2668.2,0.7492]
[1749052355726,3.95698,2668.4,2668.0,3.091]
[1749052356027,3.95698,2668.4,2668.3,0.74919]
[1749052356334,3.95698,2668.4,2668.0,3.091]
[1749052356335,0.74924,2668.1,2668.0,1.7946]
[1749052356524,0.74933,2667.8,2667.5,1.6495]
[1749052356721,0.74933,2667.8,2667.6,0.74936]
[1749052356928,0.74933,2667.8,2667.7,0.74935]
[1749052358032,0.74938,2667.6,2667.5,0.3755]
[1749052358332,1.87332,2667.8,2667.5,0.3755]
[1749052358333,3.2078,2667.8,2667.5,0.3755]
[1749052358523,0.74937,2667.7,2667.6,0.74937]
[1749052358720,3.95713,2667.8,2667.7,0.74935]
[1749052358927,0.00562525,2667.9,2667.8,0.74933]
[1749052359721,0.00562525,2667.9,2667.6,1.2678]
[1749052359925,0.75493525,2667.9,2667.6,1.2678]
[1749052360126,0.74934,2667.8,2667.7,0.74934]
[1749052360325,0.74935,2667.7,2667.6,2.01717]
[1749052360526,0.74935,2667.7,2667.6,1.2678]
[1749052360727,0.74938,2667.6,2667.5,0.3755]
[1749052360922,0.74945,2667.4,2667.3,1.12495]
[1749052361123,0.74955,2667.0,2666.9,1.63617]
[1749052361636,3.95731,2667.2,2666.6,1.87417]
[1749052361833,3.95731,2667.2,2667.0,0.74954]
[1749052362034,3.2078,2667.2,2667.1,0.74952]
[1749052362339,0.74953,2667.1,2666.7,1.2698]
[1749052362538,0.74953,2667.1,2666.9,0.74956]
[1749052363037,3.95731,2667.2,2667.0,0.74955]
[1749052363234,3.2078,2667.5,2666.9,5.654]
[1749052363436,3.2078,2667.5,2667.0,1.2698]
[1749052363729,0.74949,2667.2,2667.0,2.01933]
[1749052363935,0.74948,2667.3,2667.1,0.74951]
[1749052364134,0.74948,2667.3,2667.1,1.65211]
[1749052364332,0.74948,2667.3,2667.2,0.74949]
[1749052364534,0.74933,2667.8,2667.3,1.87366]
[1749052364740,0.74933,2667.8,2667.4,0.8755]
[1749052364940,0.74937,2667.7,2667.4,2.0769]
[1749052365243,0.74941,2667.6,2667.4,2.82632]
[1749052365435,0.74941,2667.5,2667.4,0.8755]
[1749052365633,0.74938,2667.6,2667.4,0.8755]
[1749052365839,0.74941,2667.5,2667.4,0.8755]
[1749052366243,5.08122,2667.7,2667.3,0.74946]
[1749052366535,3.2078,2667.7,2667.1,6.5566]
[1749052366740,0.74943,2667.5,2667.4,0.74944]
[1749052367640,3.2078,2667.7,2667.4,0.74944]
[1749052367830,0.74939,2667.6,2667.4,0.74942]
[1749052368034,0.74939,2667.6,2667.5,0.74941]
[1749052368438,3.95717,2667.7,2667.2,1.2014]
[1749052368641,0.74938,2667.6,2667.5,0.74939]
[1749052368845,3.2078,2667.7,2667.2,3.07513]
[1749052369045,3.95717,2667.7,2667.6,0.74938]
[1749052369346,3.95717,2667.7,2667.4,1.2206]
[1749052369347,0.00562525,2667.9,2667.7,0.74934]
[1749052369548,0.74933,2667.8,2667.7,0.74934]
[1749052369941,0.74935,2667.7,2667.6,0.74936]
[1749052370139,0.74938,2667.6,2667.5,0.74939]
[1749052370338,0.74938,2667.6,2667.4,1.2206]
[1749052370339,0.74937,2667.7,2667.6,0.74938]
[1749052370846,0.74937,2667.7,2667.6,0.74937]
[1749052371245,3.95717,2667.7,2667.6,0.74937]
[1749052371439,3.95717,2667.7,2667.6,0.74938]
[1749052371843,0.74939,2667.6,2667.5,0.74939]
[1749052372443,3.95718,2667.7,2667.6,0.74938]
[1749052372645,0.74933,2667.8,2667.7,0.74935]
[1749052372946,0.00562525,2667.9,2667.8,0.74933]
[1749052374050,0.74918,2668.4,2668.3,0.74919]
[1749052374356,0.74915,2668.5,2668.0,1.87313]
[1749052374549,0.74915,2668.5,2668.1,1.185]
[1749052374850,0.7492,2668.3,2668.2,0.74921]
[1749052375057,0.74921,2668.2,2668.1,1.185]
[1749052375551,0.74929,2668.0,2667.9,0.7493]
[1749052376149,0.74929,2668.0,2667.8,6.40331]
[1749052376353,0.7493,2667.9,2667.8,5.654]
[1749052378452,0.7493,2667.9,2667.8,6.40333]
[1749052378653,3.2078,2668.0,2667.9,0.7493]
[1749052378654,3.95708,2668.0,2667.9,0.7493]
[1749052378850,0.74925,2668.1,2668.0,0.74927]
[1749052379454,0.74928,2668.0,2667.9,0.74928]
[1749052380048,0.7493,2667.9,2667.8,2.00451]
[1749052380251,0.7493,2667.9,2667.8,1.2552]
[1749052380651,0.7493,2667.9,2667.8,2.00453]
[1749052381956,3.95708,2668.0,2667.9,0.7493]
[1749052382157,0.74923,2668.2,2667.9,1.2825]
[1749052382356,0.74923,2668.2,2668.1,0.74924]
[1749052382553,3.2078,2668.3,2668.0,0.74926]
[1749052382754,3.95701,2668.3,2668.1,1.2825]
[1749052383156,0.74921,2668.2,2668.1,1.2825]
[1749052384259,0.74921,2668.2,2668.1,2.03174]
[1749052384661,3.957,2668.3,2668.2,0.74921]
[1749052384962,0.74921,2668.2,2668.1,2.03172]
[1749052385364,3.95701,2668.3,2668.2,0.74921]
[1749052385563,0.74921,2668.2,2668.1,2.03171]
[1749052385769,3.95701,2668.3,2668.2,0.74921]
[1749052386160,0.74921,2668.2,2668.1,2.03173]
[1749052386465,3.957,2668.3,2668.2,0.74921]
[1749052386668,3.2078,2668.3,2668.2,1.95921]
[1749052386866,3.2078,2668.3,2667.6,0.00562525]
[1749052386867,0.74933,2667.8,2667.6,0.00562525]
[1749052387058,0.74935,2667.7,2667.6,0.00562525]
[1749052387865,3.2078,2667.9,2667.6,0.00562525]
[1749052388060,3.21342525,2668.6,2668.1,0.74924]
[1749052388259,0.00562525,2668.6,2668.3,1.87297]
[1749052388461,0.00562525,2668.6,2668.5,0.74913]
[1749052388866,0.00562525,2668.6,2668.5,1.95913]
[1749052390366,0.00562525,2668.6,2668.5,2.33961956]
[1749052390863,0.00562525,2668.6,2668.5,1.21]
[1749052391058,0.00562525,2668.6,2668.5,7.57413]
[1749052392968,0.00562525,2668.6,2668.5,1.21]
[1749052393167,0.75472525,2668.6,2668.5,1.21]
[1749052393563,0.00562525,2668.6,2668.5,1.21]
[1749052393763,0.00562525,2668.6,2668.5,1.95913]
[1749052394271,0.00562525,2668.6,2668.5,1.21]
[1749052394468,0.00562525,2668.6,2668.5,1.95913]
[1749052396170,0.00562525,2668.6,2668.5,1.21]
[1749052396474,0.00562525,2668.6,2668.5,1.95913]
[1749052396665,0.00562525,2668.6,2668.5,2.82033]
[1749052397767,0.00562525,2668.6,2668.5,0.8612]
[1749052397965,0.00562525,2668.6,2668.5,2.082]
[1749052399070,0.00562525,2668.6,2668.5,2.83113]
[1749052399966,0.74913,2668.5,2668.3,0.74918]
[1749052400173,0.74916,2668.4,2668.3,0.74918]
[1749052400364,0.00562525,2668.6,2668.2,7.3869]
[1749052400567,0.00562525,2668.6,2668.5,0.74913]
[1749052401064,0.75472525,2668.6,2668.5,0.74913]
[1749052401266,0.00562525,2668.6,2668.5,0.74913]
[1749052402978,3.2078,2669.4,2669.3,0.74889]
[1749052403175,3.2078,2669.4,2668.9,1.8725]
[1749052403176,3.95669,2669.4,2669.2,0.74891]
[1749052403871,0.74889,2669.4,2669.2,0.74891]
[1749052404280,3.2078,2669.5,2669.2,0.74891]
[1749052404875,0.7489,2669.4,2669.2,0.74891]
[1749052405075,3.2078,2669.5,2669.2,0.74891]
[1749052405876,0.74888,2669.4,2669.2,0.74891]
[1749052406065,0.74889,2669.4,2669.3,0.7489]
[1749052406269,0.74889,2669.4,2669.2,0.74892]
[1749052406470,0.7489,2669.3,2669.2,0.74892]
[1749052406873,0.00562525,2669.6,2669.5,0.74885]
[1749052407473,3.2078,2670.7,2669.6,1.87206]
[1749052407681,0.74862,2670.3,2670.2,3.2078]
[1749052407879,1.87152,2670.4,2669.9,3.2078]
[1749052408081,3.08266,2670.6,2670.0,2.0435]
[1749052408273,0.74866,2670.2,2670.0,2.0435]
[1749052408469,0.74865,2670.3,2670.0,1.2948]